fUST/lending_fUST_20241223
["ID","MTS","AMOUNT","RATE_DAILY","PERIOD"]
[346333464,1734898055991,-500.0,0.0001452,2]
[346333465,1734898056013,-311.638868,0.0001452,2]
[346333466,1734898056035,-311.638868,0.0001452,2]
[346333467,1734898056057,-514.67,0.0001452,2]
[346333468,1734898056079,-311.638868,0.0001452,2]
[346333469,1734898056100,-311.638868,0.0001452,2]
[346333470,1734898056122,-253.519019,0.0001452,2]
[346333471,1734898056143,-500.0,0.0001452,2]
[346333472,1734898056165,-253.519019,0.0001452,2]
[346333473,1734898056186,-253.519019,0.0001452,2]
[346333474,1734898056208,-253.519019,0.0001452,2]
[346333475,1734898056230,-1747.14,0.0001452,2]
[346333476,1734898056253,-2500.0,0.0001452,2]
[346333477,1734898056275,-500.0,0.0001452,2]
[346333478,1734898056299,-638.51,0.0001452,2]
[346333479,1734898056321,-500.0,0.0001452,2]
[346333480,1734898056343,-500.0,0.0001452,2]
[346333481,1734898056367,-500.0,0.0001452,2]
[346333482,1734898056388,-419.960024,0.0001452,2]
[346333483,1734898056411,-419.960024,0.0001452,2]
[346333484,1734898056434,-419.960024,0.0001452,2]
[346333485,1734898056457,-419.960024,0.0001452,2]
[346333486,1734898056479,-419.960024,0.0001452,2]
[346333487,1734898056503,-419.960024,0.0001452,2]
[346333488,1734898056527,-500.0,0.0001452,2]
[346333489,1734898056553,-500.0,0.0001452,2]
[346333490,1734898056576,-500.0,0.0001452,2]
[346333491,1734898056601,-1146.78,0.0001452,2]
[346333492,1734898056624,-1384.02,0.0001452,2]
[346333493,1734898056645,-500.0,0.0001452,2]
[346333494,1734898056667,-204.29,0.0001452,2]
[346333495,1734898056689,-1829.53,0.0001452,2]
[346333496,1734898056711,-1063.84,0.0001452,2]
[346333497,1734898056732,-27764.14169927,0.0001452,2]
[346333498,1734898056754,-500.0,0.0001452,2]
[346333499,1734898056775,-151.0,0.0001452,2]
[346333500,1734898056798,-151.0,0.0001452,2]
[346333501,1734898056820,-151.0,0.0001452,2]
[346333502,1734898056842,-620.23,0.0001452,2]
[346333503,1734898056864,-151.0,0.0001452,2]
[346333504,1734898056885,-151.0,0.0001452,2]
[346333505,1734898056906,-151.0,0.0001452,2]
[346333506,1734898056928,-1154.81,0.0001452,2]
[346333507,1734898056950,-542.94,0.0001452,2]
[346333508,1734898056972,-1071.92,0.0001452,2]
[346333509,1734898056993,-3377.75,0.0001452,2]
[346333510,1734898057015,-500.0,0.0001452,2]
[346333511,1734898057038,-151.0,0.0001452,2]
[346333512,1734898057061,-151.0,0.0001452,2]
[346333513,1734898057083,-347.70796685,0.0001452,2]
[346333514,1734898058385,-1572.39,0.00013698,2]
[346333515,1734898058407,-1572.39,0.00013972,2]
[346333516,1734898058428,-353.971213,0.00013972,2]
[346333517,1734898058449,-353.971213,0.0001422,2]
[346333518,1734898058471,-1572.39,0.00014246,2]
[346333519,1734898058492,-353.971213,0.00014246,2]
[346333520,1734898058518,-353.971213,0.00014246,2]
[346333521,1734898058544,-677.42,0.0001452,2]
[346333522,1734898058568,-500.0,0.0001452,2]
[346333523,1734898058589,-1258.98,0.0001452,2]
[346333524,1734898058612,-674.98,0.0001452,2]
[346333525,1734898058633,-500.0,0.0001452,2]
[346333526,1734898058656,-500.0,0.0001452,2]
[346333527,1734898058677,-1484.35,0.0001452,2]
[346333528,1734898058698,-581.24,0.0001452,2]
[346333529,1734898058718,-500.0,0.0001452,2]
[346333530,1734898058739,-500.0,0.0001452,2]
[346333531,1734898058760,-500.0,0.0001452,2]
[346333532,1734898058780,-915.03,0.0001452,2]
[346333533,1734898058803,-500.0,0.0001452,2]
[346333534,1734898058825,-778.81,0.0001452,2]
[346333535,1734898058846,-1120.23,0.0001452,2]
[346333536,1734898058867,-500.0,0.0001452,2]
[346333537,1734898059065,-500.0,0.0001452,2]
[346333538,1734898059088,-25120.46,0.0001452,2]
[346333539,1734898059109,-645.28,0.0001452,2]
[346333540,1734898059132,-882.44,0.0001452,2]
[346333541,1734898059154,-500.0,0.0001452,2]
[346333542,1734898059177,-500.0,0.0001452,2]
[346333543,1734898059198,-966.84,0.0001452,2]
[346333544,1734898059220,-1192.44,0.0001452,2]
[346333545,1734898059243,-500.0,0.0001452,2]
[346333546,1734898059278,-33680.069303,0.0001452,2]
[346333547,1734898060301,-332.8597323,0.00013872,2]
[346333599,1734898232211,-478.25,0.00013692,2]
[346333601,1734898232223,-279.1477734,0.00013692,2]
[346333603,1734898232232,-300.0,0.00013697,2]
[346333605,1734898232242,-300.0,0.00013697,2]
[346333607,1734898232252,-500.0,0.00013698,2]
[346333609,1734898232261,-500.0,0.00013698,2]
[346333611,1734898232270,-500.0,0.00013698,2]
[346333613,1734898232280,-500.0,0.00013698,2]
[346333615,1734898232289,-500.0,0.00013698,2]
[346333616,1734898232298,-500.0,0.00013698,2]
[346333618,1734898232308,-20933.72,0.00013698,2]
[346333620,1734898232317,-1915.93,0.00013698,2]
[346333622,1734898232328,-500.0,0.00013698,2]
[346333624,1734898232337,-500.0,0.00013698,2]
[346333626,1734898232347,-500.0,0.00013698,2]
[346333628,1734898232356,-500.0,0.00013698,2]
[346333630,1734898232365,-11586.64,0.00013698,2]
[346333632,1734898232374,-3634.74,0.00013698,2]
[346333634,1734898232384,-735.37,0.00013698,2]
[346333635,1734898232393,-500.0,0.00013698,2]
[346333637,1734898232402,-500.0,0.00013698,2]
[346333639,1734898232411,-609.44,0.00013698,2]
[346333641,1734898232421,-2358.12,0.00013698,2]
[346333643,1734898232430,-16117.57,0.00013698,2]
[346333645,1734898232445,-500.0,0.00013698,2]
[346333647,1734898232454,-649.01,0.00013698,2]
[346333649,1734898232463,-993.7,0.00013698,2]
[346333651,1734898232473,-500.0,0.00013698,2]
[346333653,1734898232483,-500.0,0.00013698,2]
[346333655,1734898232493,-8248.44,0.00013698,2]
[346333657,1734898232502,-2313.9,0.00013698,2]
[346333659,1734898232510,-50269.66,0.00013698,2]
[346333661,1734898232521,-500.0,0.00013698,2]
[346333663,1734898232532,-2571.7,0.00013698,2]
[346333665,1734898232541,-500.0,0.00013698,2]
[346333667,1734898232550,-500.0,0.00013698,2]
[346333669,1734898232559,-500.0,0.00013698,2]
[346333671,1734898232570,-500.0,0.00013698,2]
[346333673,1734898232579,-500.0,0.00013698,2]
[346333675,1734898232588,-540.65,0.00013698,2]
[346333677,1734898232597,-500.0,0.00013698,2]
[346333679,1734898232608,-1127.35,0.00013698,2]
[346333681,1734898232618,-500.0,0.00013698,2]
[346333683,1734898232627,-500.0,0.00013698,2]
[346333685,1734898232636,-821.27,0.00013698,2]
[346333687,1734898232645,-975.47,0.00013698,2]
[346333689,1734898232654,-630.05,0.00013698,2]
[346333691,1734898232663,-1895.21,0.00013698,2]
[346333693,1734898232671,-500.0,0.00013698,2]
[346333695,1734898232680,-500.0,0.00013698,2]
[346333697,1734898232693,-500.0,0.00013698,2]
[346333699,1734898232702,-500.0,0.00013698,2]
[346333701,1734898232711,-500.0,0.00013698,2]
[346333703,1734898232721,-500.0,0.00013698,2]
[346333705,1734898232730,-940.44,0.00013698,2]
[346333707,1734898232739,-1313.77,0.00013698,2]
[346333709,1734898232748,-664.22,0.00013698,2]
[346333711,1734898232757,-500.0,0.00013698,2]
[346333713,1734898232766,-500.0,0.00013698,2]
[346333715,1734898232775,-1144.59,0.00013698,2]
[346333716,1734898232784,-2213.08,0.00013698,2]
[346333719,1734898232796,-5890.66,0.00013698,2]
[346333721,1734898232806,-573.25,0.00013698,2]
[346333723,1734898232815,-500.0,0.00013698,2]
[346333724,1734898232824,-4883.13,0.00013698,2]
[346333726,1734898232833,-1047.64,0.00013698,2]
[346333728,1734898232842,-500.0,0.00013698,2]
[346333730,1734898232851,-500.0,0.00013698,2]
[346333732,1734898232861,-4342.66,0.00013698,2]
[346333734,1734898232870,-607.58,0.00013698,2]
[346333736,1734898232879,-1227.82,0.00013698,2]
[346333738,1734898232888,-500.0,0.00013698,2]
[346333740,1734898232897,-500.0,0.00013698,2]
[346333742,1734898232907,-1375.84,0.00013698,2]
[346333744,1734898232916,-2388.17,0.00013698,2]
[346333746,1734898232925,-2216.78,0.00013698,2]
[346333748,1734898232936,-1350.81,0.00013698,2]
[346333750,1734898232945,-500.0,0.00013698,2]
[346333752,1734898232954,-1049.15,0.00013698,2]
[346333754,1734898232963,-207.3769291,0.00013699,2]
[346333756,1734898232972,-306.379,0.0001379,2]
[346333758,1734898232983,-333.1402677,0.00013872,2]
[346333760,1734898232992,-665.0,0.000139,4]
[346333762,1734898233001,-500.0,0.00013972,2]
[346333764,1734898233010,-500.0,0.00013972,2]
[346333766,1734898233019,-500.0,0.00013972,2]
[346333768,1734898233029,-500.0,0.00013972,2]
[346333770,1734898233038,-500.0,0.00013972,2]
[346333772,1734898233048,-500.0,0.00013972,2]
[346333774,1734898233058,-20933.72,0.00013972,2]
[346333776,1734898233067,-1915.93,0.00013972,2]
[346333778,1734898233076,-500.0,0.00013972,2]
[346333780,1734898233087,-500.0,0.00013972,2]
[346333782,1734898233097,-500.0,0.00013972,2]
[346333784,1734898233107,-500.0,0.00013972,2]
[346333786,1734898233116,-11586.64,0.00013972,2]
[346333788,1734898233126,-3634.74,0.00013972,2]
[346333790,1734898233136,-500.0,0.00013972,2]
[346333793,1734898233146,-735.37,0.00013972,2]
[346333794,1734898233155,-500.0,0.00013972,2]
[346333796,1734898233164,-609.44,0.00013972,2]
[346333798,1734898233174,-2358.12,0.00013972,2]
[346333799,1734898233183,-16117.57,0.00013972,2]
[346333800,1734898233192,-500.0,0.00013972,2]
[346333801,1734898233202,-649.01,0.00013972,2]
[346333802,1734898233213,-993.7,0.00013972,2]
[346333803,1734898233222,-500.0,0.00013972,2]
[346333804,1734898233232,-8248.44,0.00013972,2]
[346333805,1734898233241,-2313.9,0.00013972,2]
[346333806,1734898233251,-45359.71757749,0.00013972,2]
[346333807,1734898233790,-4909.94242251,0.00013972,2]
[346333808,1734898233800,-500.0,0.00013972,2]
[346333809,1734898233810,-2571.7,0.00013972,2]
[346333810,1734898233820,-500.0,0.00013972,2]
[346333811,1734898233829,-500.0,0.00013972,2]
[346333812,1734898233839,-141.87137249,0.00013972,2]
[346333813,1734898235349,-358.12862751,0.00013972,2]
[346333814,1734898235359,-500.0,0.00013972,2]
[346333815,1734898235368,-500.0,0.00013972,2]
[346333816,1734898235378,-151.0,0.00013972,2]
[346333817,1734898235387,-540.65,0.00013972,2]
[346333818,1734898235398,-151.0,0.00013972,2]
[346333819,1734898235407,-500.0,0.00013972,2]
[346333820,1734898235417,-557.65920823,0.00013972,2]
[346333886,1734898238146,-3607.86,0.00013698,2]
[346333888,1734898238155,-569.69079177,0.00013972,2]
[346333890,1734898238164,-500.0,0.00013972,2]
[346333892,1734898238174,-500.0,0.00013972,2]
[346333894,1734898238183,-821.27,0.00013972,2]
[346333896,1734898238194,-975.47,0.00013972,2]
[346333898,1734898238204,-630.05,0.00013972,2]
[346333900,1734898238212,-1895.21,0.00013972,2]
[346333902,1734898238222,-177.409442,0.00013972,2]
[346333904,1734898238232,-500.0,0.00013972,2]
[346333906,1734898238241,-500.0,0.00013972,2]
[346333908,1734898238251,-177.409442,0.00013972,2]
[346333910,1734898238260,-500.0,0.00013972,2]
[346333912,1734898238269,-500.0,0.00013972,2]
[346333914,1734898238279,-4.42683508,0.00013972,2]
[346333916,1734898238290,-495.57316492,0.00013972,2]
[346333918,1734898238299,-500.0,0.00013972,2]
[346333920,1734898238308,-940.44,0.00013972,2]
[346333922,1734898238317,-1313.77,0.00013972,2]
[346333924,1734898238328,-664.22,0.00013972,2]
[346333927,1734898238337,-500.0,0.00013972,2]
[346333930,1734898238347,-151.0,0.00013972,2]
[346333932,1734898238363,-500.0,0.00013972,2]
[346333935,1734898238376,-1144.59,0.00013972,2]
[346333937,1734898238385,-2213.08,0.00013972,2]
[346333939,1734898238394,-151.0,0.00013972,2]
[346333940,1734898238403,-5890.66,0.00013972,2]
[346333942,1734898238412,-573.25,0.00013972,2]
[346333944,1734898238421,-500.0,0.00013972,2]
[346333946,1734898238432,-4883.13,0.00013972,2]
[346333948,1734898238444,-1047.64,0.00013972,2]
[346333950,1734898238453,-161.5096449,0.00013972,2]
[346333952,1734898238462,-500.0,0.00013972,2]
[346333954,1734898238472,-151.0,0.00013972,2]
[346333956,1734898238481,-4342.66,0.00013972,2]
[346333958,1734898238490,-607.58,0.00013972,2]
[346333960,1734898238500,-1227.82,0.00013972,2]
[346333962,1734898238509,-500.0,0.00013972,2]
[346333964,1734898238519,-151.0,0.00013972,2]
[346333966,1734898238532,-500.0,0.00013972,2]
[346333968,1734898238541,-1375.84,0.00013972,2]
[346333970,1734898238551,-2388.17,0.00013972,2]
[346333972,1734898238561,-2216.78,0.00013972,2]
[346333974,1734898238570,-1350.81,0.00013972,2]
[346333976,1734898238579,-500.0,0.00013972,2]
[346333978,1734898238588,-1049.15,0.00013972,2]
[346333980,1734898238597,-225.634587,0.00013972,2]
[346333982,1734898238608,-400.0,0.00013973,2]
[346333984,1734898238617,-927.0,0.000141,2]
[346333986,1734898238626,-500.0,0.00014246,2]
[346333988,1734898238635,-500.0,0.00014246,2]
[346333990,1734898238644,-500.0,0.00014246,2]
[346333992,1734898238653,-500.0,0.00014246,2]
[346333994,1734898238664,-500.0,0.00014246,2]
[346333996,1734898238673,-500.0,0.00014246,2]
[346333998,1734898238682,-20933.72,0.00014246,2]
[346334000,1734898238693,-1915.93,0.00014246,2]
[346334002,1734898238702,-500.0,0.00014246,2]
[346334004,1734898238711,-500.0,0.00014246,2]
[346334006,1734898238720,-500.0,0.00014246,2]
[346334008,1734898238729,-500.0,0.00014246,2]
[346334010,1734898238739,-11586.64,0.00014246,2]
[346334012,1734898238747,-3634.74,0.00014246,2]
[346334014,1734898238757,-735.37,0.00014246,2]
[346334016,1734898238766,-500.0,0.00014246,2]
[346334018,1734898238775,-500.0,0.00014246,2]
[346334020,1734898238784,-609.44,0.00014246,2]
[346334022,1734898238793,-2358.12,0.00014246,2]
[346334024,1734898238802,-16117.57,0.00014246,2]
[346334026,1734898238811,-500.0,0.00014246,2]
[346334028,1734898238821,-649.01,0.00014246,2]
[346334030,1734898238831,-993.7,0.00014246,2]
[346334032,1734898238840,-500.0,0.00014246,2]
[346334034,1734898238849,-3172.45260318,0.00014246,2]
[346334036,1734898238862,-5075.98739682,0.00014246,2]
[346334038,1734898238871,-2313.9,0.00014246,2]
[346334040,1734898238880,-50269.66,0.00014246,2]
[346334042,1734898238890,-500.0,0.00014246,2]
[346334044,1734898238899,-2571.7,0.00014246,2]
[346334046,1734898238908,-500.0,0.00014246,2]
[346334048,1734898238917,-506.17245367,0.00014246,2]
[346334050,1734898238926,-500.0,0.00014246,2]
[346334052,1734898238935,-500.0,0.00014246,2]
[346334054,1734898238949,-500.0,0.00014246,2]
[346334056,1734898238958,-151.0,0.00014246,2]
[346334058,1734898238967,-151.0,0.00014246,2]
[346334060,1734898238977,-151.0,0.00014246,2]
[346334062,1734898238986,-540.65,0.00014246,2]
[346334064,1734898238995,-151.0,0.00014246,2]
[346334067,1734898239005,-500.0,0.00014246,2]
[346334069,1734898239015,-1127.35,0.00014246,2]
[346334071,1734898239024,-500.0,0.00014246,2]
[346334073,1734898239033,-500.0,0.00014246,2]
[346334075,1734898239043,-821.27,0.00014246,2]
[346334077,1734898239053,-975.47,0.00014246,2]
[346334079,1734898239062,-630.05,0.00014246,2]
[346334081,1734898239071,-1895.21,0.00014246,2]
[346334083,1734898239080,-177.409442,0.00014246,2]
[346334085,1734898239090,-500.0,0.00014246,2]
[346334087,1734898239099,-177.409442,0.00014246,2]
[346334089,1734898239108,-177.409442,0.00014246,2]
[346334091,1734898239118,-500.0,0.00014246,2]
[346334093,1734898239127,-177.409442,0.00014246,2]
[346334095,1734898239136,-500.0,0.00014246,2]
[346334097,1734898239146,-177.409442,0.00014246,2]
[346334099,1734898239155,-177.409442,0.00014246,2]
[346334101,1734898239165,-500.0,0.00014246,2]
[346334103,1734898239174,-500.0,0.00014246,2]
[346334104,1734898239183,-500.0,0.00014246,2]
[346334106,1734898239198,-940.44,0.00014246,2]
[346334108,1734898239207,-1313.77,0.00014246,2]
[346334110,1734898239216,-664.22,0.00014246,2]
[346334111,1734898239226,-500.0,0.00014246,2]
[346334113,1734898239235,-151.0,0.00014246,2]
[346334115,1734898239244,-500.0,0.00014246,2]
[346334116,1734898239254,-151.0,0.00014246,2]
[346334117,1734898239264,-1144.59,0.00014246,2]
[346334118,1734898239273,-107.77630751,0.00014246,2]
[346334747,1734898247256,-43.22369249,0.00014246,2]
[346334748,1734898247267,-2213.08,0.00014246,2]
[346334749,1734898247276,-151.0,0.00014246,2]
[346334750,1734898247286,-5890.66,0.00014246,2]
[346334751,1734898247295,-151.0,0.00014246,2]
[346334752,1734898247304,-151.0,0.00014246,2]
[346334753,1734898247313,-573.25,0.00014246,2]
[346334755,1734898247323,-500.0,0.00014246,2]
[346334757,1734898247332,-4883.13,0.00014246,2]
[346334759,1734898247342,-1047.64,0.00014246,2]
[346334761,1734898247351,-500.0,0.00014246,2]
[346334763,1734898247360,-151.0,0.00014246,2]
[346334765,1734898247370,-4342.66,0.00014246,2]
[346334767,1734898247379,-607.58,0.00014246,2]
[346334769,1734898247388,-1227.82,0.00014246,2]
[346334771,1734898247397,-500.0,0.00014246,2]
[346334773,1734898247406,-151.0,0.00014246,2]
[346334775,1734898247416,-151.0,0.00014246,2]
[346334777,1734898247425,-151.0,0.00014246,2]
[346334779,1734898247435,-500.0,0.00014246,2]
[346334781,1734898247447,-1375.84,0.00014246,2]
[346334783,1734898247457,-2388.17,0.00014246,2]
[346334785,1734898247466,-2216.78,0.00014246,2]
[346334787,1734898247476,-1350.81,0.00014246,2]
[346334789,1734898247486,-500.0,0.00014246,2]
[346334791,1734898247495,-1049.15,0.00014246,2]
[346334793,1734898247505,-10306.23948023,0.00014375,2]
[346334795,1734898247515,-500.0,0.0001452,2]
[346334797,1734898247526,-671.49,0.0001452,2]
[346334799,1734898247541,-999.5,0.0001452,2]
[346334801,1734898247551,-151.0,0.0001452,2]
[346334803,1734898247560,-151.0,0.0001452,2]
[346334805,1734898247570,-500.0,0.0001452,2]
[346334807,1734898247579,-151.0,0.0001452,2]
[346334809,1734898247588,-151.0,0.0001452,2]
[346334812,1734898247598,-500.0,0.0001452,2]
[346334814,1734898247608,-1014.49,0.0001452,2]
[346334815,1734898247617,-500.0,0.0001452,2]
[346334818,1734898247628,-1300.26,0.0001452,2]
[346334820,1734898247637,-500.0,0.0001452,2]
[346334822,1734898247646,-644.10047311,0.0001452,2]
[346334824,1734898247656,-559.61,0.0001452,2]
[346334825,1734898247665,-962.09,0.0001452,2]
[346334827,1734898247674,-500.0,0.0001452,2]
[346334829,1734898247684,-500.0,0.0001452,2]
[346334831,1734898247694,-500.0,0.0001452,2]
[346334833,1734898247705,-2050.24,0.0001452,2]
[346334835,1734898247714,-500.0,0.0001452,2]
[346334837,1734898247723,-500.0,0.0001452,2]
[346334839,1734898247732,-500.0,0.0001452,2]
[346334841,1734898247743,-1840.32,0.0001452,2]
[346334843,1734898247752,-500.0,0.0001452,2]
[346334845,1734898247761,-206.090644,0.0001452,2]
[346334847,1734898247770,-206.090644,0.0001452,2]
[346334849,1734898247780,-206.090644,0.0001452,2]
[346334851,1734898247789,-500.0,0.0001452,2]
[346334853,1734898247799,-206.090644,0.0001452,2]
[346334856,1734898247808,-206.090644,0.0001452,2]
[346334858,1734898247818,-206.090644,0.0001452,2]
[346334860,1734898247828,-191.293597,0.0001452,2]
[346334862,1734898247837,-619.23,0.0001452,2]
[346334864,1734898247846,-500.0,0.0001452,2]
[346334866,1734898247855,-1286.39,0.0001452,2]
[346334868,1734898247865,-500.0,0.0001452,2]
[346334870,1734898247874,-1768.71,0.0001452,2]
[346334872,1734898247883,-1426.45,0.0001452,2]
[346334874,1734898247893,-564.33,0.0001452,2]
[346334876,1734898247902,-1742.18,0.0001452,2]
[346334878,1734898247912,-500.0,0.0001452,2]
[346334880,1734898247921,-500.0,0.0001452,2]
[346334882,1734898247931,-500.0,0.0001452,2]
[346334884,1734898247941,-500.0,0.0001452,2]
[346334886,1734898247951,-500.0,0.0001452,2]
[346334888,1734898247963,-1026.24,0.0001452,2]
[346334890,1734898247978,-258.127944,0.0001452,2]
[346334892,1734898247987,-258.127944,0.0001452,2]
[346334894,1734898247996,-500.0,0.0001452,2]
[346334897,1734898248006,-638.78,0.0001452,2]
[346334899,1734898248016,-258.127944,0.0001452,2]
[346334900,1734898248025,-258.127944,0.0001452,2]
[346334902,1734898248035,-500.0,0.0001452,2]
[346334904,1734898248045,-524.92,0.0001452,2]
[346334906,1734898248055,-500.0,0.0001452,2]
[346334908,1734898248065,-2282.56,0.0001452,2]
[346334911,1734898248075,-930.06,0.0001452,2]
[346334913,1734898248085,-500.0,0.0001452,2]
[346334915,1734898248095,-568.29,0.0001452,2]
[346334917,1734898248105,-1232.72,0.0001452,2]
[346334919,1734898248114,-659.14,0.0001452,2]
[346334921,1734898248123,-437.351639,0.0001452,2]
[346334923,1734898248132,-1396.28,0.0001452,2]
[346334925,1734898248142,-437.351639,0.0001452,2]
[346334927,1734898248152,-170.9,0.0001452,2]
[346334929,1734898248161,-437.351639,0.0001452,2]
[346334931,1734898248171,-437.351639,0.0001452,2]
[346334933,1734898248182,-500.0,0.0001452,2]
[346334935,1734898248193,-353.971213,0.0001452,2]
[346334937,1734898248203,-353.971213,0.0001452,2]
[346334939,1734898248213,-353.971213,0.0001452,2]
[346334941,1734898248223,-353.971213,0.0001452,2]
[346334943,1734898248232,-353.971213,0.0001452,2]
[346334945,1734898248241,-353.971213,0.0001452,2]
[346334947,1734898248251,-500.0,0.0001452,2]
[346334949,1734898248261,-500.0,0.0001452,2]
[346334951,1734898248271,-404.01019005,0.0001452,2]
[346334953,1734898248281,-500.0,0.0001452,2]
[346334955,1734898248290,-500.0,0.0001452,2]
[346334957,1734898248300,-500.0,0.0001452,2]
[346334959,1734898248309,-20933.72,0.0001452,2]
[346334961,1734898248319,-1915.93,0.0001452,2]
[346334963,1734898248331,-517.83591499,0.0001452,2]
[346334965,1734898248340,-509.51264085,0.0001452,2]
[346334967,1734898248357,-500.0,0.0001452,2]
[346334969,1734898248372,-500.0,0.0001452,2]
[346334971,1734898248385,-8015.11777928,0.0001452,2]
[346334999,1734898248658,-3607.86,0.00013972,2]
[346335002,1734898248668,-3571.52222072,0.0001452,2]
[346335003,1734898248678,-3634.74,0.0001452,2]
[346335006,1734898248688,-735.37,0.0001452,2]
[346335007,1734898248699,-500.0,0.0001452,2]
[346335010,1734898248709,-500.0,0.0001452,2]
[346335012,1734898248718,-500.0,0.0001452,2]
[346335014,1734898248728,-609.44,0.0001452,2]
[346335016,1734898248738,-150.09,0.0001452,2]
[346335018,1734898248749,-150.09,0.0001452,2]
[346335019,1734898248759,-2358.12,0.0001452,2]
[346335022,1734898248769,-16117.57,0.0001452,2]
[346335024,1734898248779,-500.0,0.0001452,2]
[346335026,1734898248788,-649.01,0.0001452,2]
[346335027,1734898248798,-993.7,0.0001452,2]
[346335030,1734898248808,-500.0,0.0001452,2]
[346335031,1734898248818,-8248.44,0.0001452,2]
[346335033,1734898248828,-2313.9,0.0001452,2]
[346335036,1734898248838,-50269.66,0.0001452,2]
[346335037,1734898248847,-500.0,0.0001452,2]
[346335039,1734898248857,-2571.7,0.0001452,2]
[346335042,1734898248867,-500.0,0.0001452,2]
[346335043,1734898248877,-500.0,0.0001452,2]
[346335045,1734898248887,-500.0,0.0001452,2]
[346335048,1734898248897,-500.0,0.0001452,2]
[346335049,1734898248906,-151.0,0.0001452,2]
[346335052,1734898248916,-151.0,0.0001452,2]
[346335053,1734898248926,-152.283013,0.0001452,2]
[346335056,1734898248935,-540.65,0.0001452,2]
[346335058,1734898248945,-624.34783588,0.0001452,2]
[346335060,1734898248956,-1127.35,0.0001452,2]
[346335061,1734898248965,-500.0,0.0001452,2]
[346335063,1734898248975,-500.0,0.0001452,2]
[346335066,1734898248985,-821.27,0.0001452,2]
[346335068,1734898248995,-975.47,0.0001452,2]
[346335070,1734898249005,-630.05,0.0001452,2]
[346335072,1734898249015,-1895.21,0.0001452,2]
[346335074,1734898249025,-500.0,0.0001452,2]
[346335076,1734898249035,-177.409442,0.0001452,2]
[346335078,1734898249044,-177.409442,0.0001452,2]
[346335080,1734898249054,-177.409442,0.0001452,2]
[346335082,1734898249063,-500.0,0.0001452,2]
[346335084,1734898249073,-500.0,0.0001452,2]
[346335086,1734898249082,-177.409442,0.0001452,2]
[346335087,1734898249092,-177.409442,0.0001452,2]
[346335089,1734898249101,-177.409442,0.0001452,2]
[346335091,1734898249111,-500.0,0.0001452,2]
[346335092,1734898249120,-500.0,0.0001452,2]
[346335093,1734898249130,-500.0,0.0001452,2]
[346335094,1734898249139,-940.44,0.0001452,2]
[346335095,1734898249149,-1313.77,0.0001452,2]
[346335097,1734898249158,-664.22,0.0001452,2]
[346335099,1734898249167,-500.0,0.0001452,2]
[346335101,1734898249177,-532.26770095,0.0001452,2]
[346335103,1734898249187,-1144.59,0.0001452,2]
[346335105,1734898249196,-151.0,0.0001452,2]
[346335107,1734898249206,-2213.08,0.0001452,2]
[346335109,1734898249216,-151.0,0.0001452,2]
[346335111,1734898249227,-151.0,0.0001452,2]